bitfinex/quotes_BTCUSD_20251011
["timestamp","ask_amount","ask_price","bid_price","bid_amount"]
[1760142979957,10.19789289,112380.0,112360.0,0.38652353]
[1760142980239,10.19612289,112380.0,112360.0,0.38652353]
[1760142980399,10.59612289,112380.0,112360.0,0.38652353]
[1760142980599,10.19612289,112380.0,112360.0,0.38652353]
[1760142980806,10.01531513,112380.0,112370.0,0.20527]
[1760142981568,10.01531513,112380.0,112370.0,0.10744]
[1760142981706,10.59612273,112380.0,112360.0,0.38652353]
[1760142982081,10.19612273,112380.0,112360.0,0.38652353]
[1760142982230,10.19789273,112380.0,112360.0,0.38652353]
[1760142982432,10.19612273,112380.0,112360.0,0.38652353]
[1760142982853,10.19789273,112380.0,112360.0,0.38652353]
[1760142983020,10.01815513,112380.0,112360.0,0.48435353]
[1760142983230,10.01531513,112380.0,112370.0,0.10744]
[1760142983629,10.01531513,112380.0,112370.0,0.20527]
[1760142983855,10.01531513,112380.0,112370.0,0.10744]
[1760142984059,10.19328273,112380.0,112370.0,0.10744]
[1760142984432,10.1779676,112380.0,112370.0,0.10744]
[1760142984633,10.0,112380.0,112370.0,0.10744]
[1760142985479,10.0,112380.0,112370.0,0.54527]
[1760142988395,9.9,112380.0,112370.0,0.72325344]
[1760142989148,9.8,112380.0,112370.0,0.83575398]
[1760142989354,9.8,112380.0,112370.0,0.96690587]
[1760142989574,9.79976222,112380.0,112370.0,0.96690587]
[1760142990022,9.61471222,112380.0,112370.0,1.06690586]
[1760142990441,9.61471222,112380.0,112370.0,1.02690587]
[1760142990653,8.85045146,112380.0,112370.0,1.12590586]
[1760142990875,8.64134726,112380.0,112370.0,1.24302446]
[1760142991079,8.46765824,112380.0,112370.0,1.21302457]
[1760142991286,8.1475439,112380.0,112370.0,1.24490531]
[1760142991486,7.93522796,112380.0,112370.0,1.24290531]
[1760142991686,7.79622158,112380.0,112370.0,1.04290533]
[1760142991884,7.79475899,112380.0,112370.0,1.61227878]
[1760142992191,7.79475899,112380.0,112370.0,1.80539801]
[1760142992192,7.59534326,112380.0,112370.0,1.80539801]
[1760142992394,7.41057763,112380.0,112370.0,1.80239801]
[1760142992634,7.24612812,112380.0,112370.0,1.83029254]
[1760142992839,7.16184294,112380.0,112370.0,1.83029254]
[1760142993147,7.16184294,112380.0,112370.0,1.74639801]
[1760142993496,6.6660542,112380.0,112370.0,1.74639801]
[1760142993712,6.33425908,112380.0,112370.0,1.78981402]
[1760142993965,6.19775799,112380.0,112370.0,1.82545373]
[1760142994164,6.05266081,112380.0,112370.0,1.82845373]
[1760142994497,5.7397945,112380.0,112370.0,1.82845373]
[1760142994704,5.59758264,112380.0,112370.0,1.80710043]
[1760142994904,5.43502268,112380.0,112370.0,1.78757895]
[1760142995082,5.43502268,112380.0,112370.0,1.79057895]
[1760142995083,5.20774983,112380.0,112370.0,1.79057895]
[1760142995287,5.05813762,112380.0,112370.0,1.81010043]
[1760142995600,4.82918188,112380.0,112370.0,1.78757895]
[1760142995762,4.61192539,112380.0,112370.0,1.79157895]
[1760142995973,4.53217192,112380.0,112370.0,1.82945373]
[1760142996169,4.28039469,112380.0,112370.0,1.81110043]
[1760142996365,4.20216504,112380.0,112370.0,1.81110043]
[1760142996617,3.88973909,112380.0,112370.0,1.79157895]
[1760142996932,3.77848057,112380.0,112370.0,1.77029254]
[1760142997263,3.33398851,112380.0,112370.0,1.76475131]
[1760142997470,3.25480021,112380.0,112370.0,1.76475131]
[1760142998205,3.25480021,112380.0,112370.0,1.13193531]
[1760142998412,3.25480021,112380.0,112370.0,1.15808721]
[1760142998613,3.25480021,112380.0,112370.0,1.35808719]
[1760142998809,3.25480021,112380.0,112370.0,1.36108719]
[1760142999056,3.25480021,112380.0,112370.0,1.70108719]
[1760142999231,3.25480021,112380.0,112370.0,1.50108721]
[1760142999415,3.25480021,112380.0,112370.0,1.70108719]
[1760142999616,3.25480021,112380.0,112370.0,1.67093529]
[1760143000016,3.25480021,112380.0,112370.0,1.71524611]
[1760143000372,3.25480021,112380.0,112370.0,1.74239801]
[1760143000501,2.82383305,112380.0,112370.0,1.74539801]
[1760143001113,2.82383305,112380.0,112370.0,1.74239801]
[1760143001326,2.82383305,112380.0,112370.0,1.70108719]
[1760143001994,2.82383305,112380.0,112370.0,1.5679353]
[1760143002403,2.82383305,112380.0,112370.0,1.69808719]
[1760143002809,2.82383305,112380.0,112370.0,1.66793529]
[1760143003046,2.82383305,112380.0,112370.0,1.46793531]
[1760143003395,2.82383305,112380.0,112370.0,1.6010872]
[1760143003527,2.82383305,112380.0,112370.0,1.70108719]
[1760143003882,2.82383305,112380.0,112370.0,1.5679353]
[1760143004089,2.82383305,112380.0,112370.0,0.94995187]
[1760143004313,2.82383305,112380.0,112370.0,1.2309353]
[1760143004722,2.82383305,112380.0,112370.0,1.5709353]
[1760143004894,2.82383305,112380.0,112370.0,1.2309353]
[1760143005104,2.82383305,112380.0,112370.0,1.13093531]
[1760143005348,2.82383305,112380.0,112370.0,1.2309353]
[1760143005547,2.82383305,112380.0,112370.0,1.5709353]
[1760143006343,2.82383305,112380.0,112370.0,1.38995186]
[1760143006537,2.82383305,112380.0,112370.0,1.26495188]
[1760143006757,2.82383305,112380.0,112370.0,1.26695188]
[1760143006968,2.82383305,112380.0,112370.0,0.83945133]
[1760143007108,2.82383305,112380.0,112370.0,0.73962133]
[1760143007316,2.87011305,112380.0,112370.0,1.01800133]
[1760143007518,2.82383305,112380.0,112370.0,0.38782]
[1760143007716,2.87011305,112380.0,112370.0,0.04782]
[1760143007917,3.03320305,112380.0,112370.0,0.002]
[1760143008116,3.03231313,112380.0,112360.0,0.38652353]
[1760143008338,3.03231313,112380.0,112370.0,0.001]
[1760143008979,3.23684014,112380.0,112370.0,0.001]
[1760143009748,0.17798344,112370.0,112360.0,0.00070353]
[1760143009890,0.28262859,112370.0,112360.0,0.00070353]
[1760143010090,0.44278859,112370.0,112360.0,0.00070353]
[1760143011072,0.10703,112370.0,112360.0,0.00070353]
[1760143011296,2.86922313,112380.0,112360.0,0.00350353]
[1760143011715,2.86922313,112380.0,112360.0,0.00250353]
[1760143011964,2.82294313,112380.0,112360.0,0.34363353]
[1760143012372,2.82294313,112380.0,112360.0,0.34250353]
[1760143012825,2.86939313,112380.0,112360.0,0.00250353]
[1760143013022,0.10703,112370.0,112360.0,0.00070353]
[1760143013341,2.82294313,112380.0,112370.0,0.0018]
[1760143013756,3.02955313,112380.0,112360.0,0.00070353]
[1760143013965,3.02955313,112380.0,112360.0,0.00170353]
[1760143013966,0.04645,112370.0,112360.0,0.00170353]
[1760143014403,0.20661,112370.0,112360.0,0.00070353]
[1760143015300,0.04645,112370.0,112360.0,0.00070353]
[1760143015508,2.86939313,112380.0,112360.0,0.00250353]
[1760143015913,0.04645,112370.0,112360.0,0.00070353]
[1760143016317,0.10703,112370.0,112360.0,0.00170353]
[1760143016895,0.20661,112370.0,112360.0,0.00170353]
[1760143018075,0.10703,112370.0,112360.0,0.00170353]
[1760143018277,0.04645,112370.0,112360.0,0.00170353]
[1760143018855,2.86939313,112380.0,112360.0,0.00170353]
[1760143019074,2.86939313,112380.0,112360.0,0.00350353]
[1760143019746,2.86939313,112380.0,112360.0,0.00250353]
[1760143020229,2.86939313,112380.0,112360.0,0.00350353]
[1760143020433,2.82294313,112380.0,112370.0,0.34113]
[1760143020585,2.82294313,112380.0,112370.0,0.60841399]
[1760143020994,2.82181313,112380.0,112370.0,0.76356587]
[1760143021375,2.82181313,112380.0,112370.0,0.80787669]
[1760143021584,2.82181313,112380.0,112370.0,0.78742943]
[1760143021795,2.82181313,112380.0,112370.0,0.93174024]
[1760143021972,2.82181313,112380.0,112370.0,0.88742942]
[1760143022177,2.82181313,112380.0,112370.0,0.89174025]
[1760143022442,2.82181313,112380.0,112370.0,0.99274024]
[1760143022988,2.82181313,112380.0,112370.0,0.99174024]
[1760143023188,2.82181313,112380.0,112370.0,0.95042942]
[1760143023391,2.82181313,112380.0,112370.0,0.99474024]
[1760143023792,2.06037207,112380.0,112370.0,0.99474024]
[1760143024019,1.9801166,112380.0,112370.0,0.99474024]
[1760143024285,1.82858222,112380.0,112370.0,0.99174024]
[1760143024488,1.74751045,112380.0,112370.0,0.99174024]
[1760143024886,1.74751045,112380.0,112370.0,0.94742942]
[1760143025089,1.25461332,112380.0,112370.0,0.99174024]
[1760143025305,0.11080968,112490.0,112480.0,0.30280936]
[1760143025520,0.11080968,112490.0,112470.0,0.34]
[1760143025723,0.11080968,112490.0,112480.0,0.02388871]
[1760143025967,0.11080968,112490.0,112480.0,0.56080317]
[1760143026367,0.11080968,112490.0,112480.0,0.53691446]
[1760143026555,0.11096097,112490.0,112480.0,0.53791446]
[1760143026927,0.11096097,112490.0,112480.0,0.53691446]
[1760143027385,0.11096097,112490.0,112480.0,0.53891446]
[1760143031441,0.11096097,112490.0,112480.0,0.51980938]
[1760143032029,0.08862562,112490.0,112480.0,0.342]
[1760143032173,0.22259617,112490.0,112480.0,0.002]
[1760143032372,0.17612617,112490.0,112480.0,0.002]
[1760143032779,0.08862562,112490.0,112480.0,0.002]
[1760143032981,0.08862562,112490.0,112480.0,0.51780938]
[1760143033354,0.08862562,112490.0,112480.0,0.51880938]
[1760143034448,0.08862562,112490.0,112480.0,0.60630993]
[1760143034657,0.06629021,112490.0,112480.0,0.7502078]
[1760143035975,0.06629021,112490.0,112480.0,0.8102078]
[1760143036182,0.06629021,112490.0,112480.0,0.8403597]
[1760143036717,0.06629021,112490.0,112480.0,0.94035969]
[1760143036968,0.0002,112500.0,112490.0,0.64279356]
[1760143037165,0.0002,112500.0,112490.0,1.38137333]
[1760143037902,0.04647,112580.0,112540.0,0.34]
[1760143038085,0.08750055,112570.0,112550.0,0.13519]
[1760143038243,0.00288307,112560.0,112550.0,0.47519]
[1760143038450,0.09038362,112560.0,112550.0,0.53523]
[1760143038788,0.0680621,112560.0,112550.0,0.44241]
[1760143039148,0.0680621,112560.0,112550.0,0.38237]
[1760143039806,0.098214,112560.0,112550.0,0.38337]
[1760143040458,0.0680621,112560.0,112550.0,0.53623]
[1760143040867,0.04697443,112580.0,112560.0,0.34]
[1760143041058,0.08750055,112570.0,112560.0,0.38237]
[1760143041267,0.08750055,112570.0,112560.0,0.44241]
[1760143041570,0.08750055,112570.0,112560.0,0.53523]
[1760143041795,0.08750055,112570.0,112560.0,0.44241]
[1760143042041,0.08750055,112570.0,112560.0,0.53523]
[1760143042858,0.25548245,112570.0,112550.0,0.34]
[1760143043088,0.11765245,112570.0,112560.0,0.10241]
[1760143043285,0.08750055,112570.0,112560.0,0.10241]
[1760143043483,0.08750055,112570.0,112560.0,0.19523]
[1760143044394,0.00050443,112580.0,112560.0,0.19523]
[1760143044730,0.08800498,112580.0,112570.0,0.04237]
[1760143044933,0.08800498,112580.0,112570.0,0.44241]
[1760143045888,0.08800498,112580.0,112570.0,0.38237]
[1760143046370,0.06568743,112580.0,112570.0,0.38237]
[1760143046799,0.23366933,112580.0,112570.0,0.34]
[1760143047174,0.06568743,112580.0,112570.0,0.44241]
[1760143048661,0.04336988,112580.0,112570.0,0.34]
[1760143048875,0.08983988,112580.0,112570.0,0.34]
[1760143049108,0.04336988,112580.0,112570.0,0.44241]
[1760143050844,0.0002,112590.0,112570.0,0.44241]
[1760143051056,0.08785183,112590.0,112580.0,0.47519]
[1760143051308,0.08785183,112590.0,112580.0,0.53523]
[1760143052175,0.06553626,112590.0,112580.0,0.53523]
[1760143052556,0.06726525,112590.0,112580.0,0.53523]
[1760143054196,0.00188027,112590.0,112580.0,0.53523]
[1760143054905,0.16203961,112590.0,112570.0,0.38237]
[1760143055524,0.16203961,112590.0,112580.0,0.04542]
[1760143055730,0.16203961,112590.0,112570.0,0.47519]
[1760143055731,0.04647,112580.0,112560.0,0.04237]
[1760143055940,0.04647,112580.0,112550.0,0.04237]
[1760143055941,0.13247948,112570.0,112550.0,0.04237]
[1760143056157,0.13247948,112570.0,112560.0,0.04542]
[1760143056365,0.20151994,112570.0,112550.0,0.04237]
[1760143056574,0.11015994,112570.0,112560.0,0.04542]
[1760143057832,0.20393184,112570.0,112540.0,0.38542]
[1760143058087,0.20393184,112570.0,112550.0,0.04542]
[1760143058278,0.38159979,112570.0,112550.0,0.04542]
[1760143058477,0.38159963,112570.0,112550.0,0.04542]
[1760143058649,0.20393184,112570.0,112550.0,0.04542]
[1760143058858,0.38159929,112570.0,112550.0,0.04542]
[1760143059488,0.06368994,112570.0,112560.0,0.10787]
[1760143059804,0.06368994,112570.0,112560.0,0.20316]
[1760143060097,0.63297162,112600.0,112560.0,0.22227005]
[1760143060098,0.04647,112600.0,112560.0,0.22227005]
[1760143060303,0.06329542,112590.0,112570.0,0.14282]
[1760143060600,0.06329542,112590.0,112580.0,0.54411028]
[1760143060963,0.06329542,112590.0,112580.0,0.44882028]
[1760143061365,0.18239175,112590.0,112580.0,0.34095028]
[1760143061565,0.18239175,112590.0,112580.0,0.36006747]
[1760143062255,0.08849985,112590.0,112580.0,0.36006747]
[1760143062469,0.04097985,112590.0,112580.0,0.46793747]
[1760143063080,0.04097985,112590.0,112580.0,0.56322747]
[1760143063747,0.10501615,112610.0,112580.0,0.56322747]
[1760143063896,0.19918035,112600.0,112580.0,0.56322747]
[1760143064490,0.02156,112600.0,112590.0,0.04753]
[1760143065130,0.19917989,112600.0,112580.0,0.38848028]
[1760143065326,0.04752,112590.0,112580.0,0.36008848]
[1760143065731,0.22515566,112590.0,112580.0,0.36008848]
[1760143066860,0.22515566,112590.0,112580.0,0.34095028]
[1760143067467,0.20286322,112590.0,112580.0,0.34095028]
[1760143068993,0.20531322,112590.0,112580.0,0.34095028]
[1760143069681,0.20286322,112590.0,112580.0,0.45128028]
[1760143069912,0.02522756,112590.0,112580.0,0.45128028]
[1760143070113,0.20286322,112590.0,112580.0,0.47042455]
[1760143070312,0.20286322,112590.0,112580.0,0.47042495]
[1760143071290,0.20286322,112590.0,112580.0,0.40719495]
[1760143071495,0.20286322,112590.0,112580.0,0.36009495]
[1760143071695,0.20286322,112590.0,112580.0,0.40719495]
[1760143072009,0.20286322,112590.0,112580.0,0.36009495]
[1760143072216,0.20286322,112590.0,112580.0,0.34095028]
[1760143072415,0.23301512,112590.0,112580.0,0.34095028]
[1760143072618,0.23301512,112590.0,112580.0,0.00095028]
[1760143073365,0.23546512,112590.0,112580.0,0.00095028]
[1760143074233,0.02767756,112590.0,112580.0,0.00095028]
[1760143074433,0.02522756,112590.0,112580.0,0.11128028]
[1760143074895,0.0223,112610.0,112580.0,0.22465786]
[1760143075112,0.0223,112610.0,112600.0,0.0471]
[1760143076056,0.19990412,112610.0,112600.0,0.0471]
[1760143076626,0.0223,112610.0,112600.0,0.0471]
[1760143077506,0.19990488,112610.0,112590.0,0.3871]
[1760143077708,0.0223,112610.0,112600.0,0.06323]
[1760143077910,0.0223,112610.0,112590.0,0.3871]
[1760143077911,0.1775935,112610.0,112590.0,0.3871]
[1760143078322,0.02449,112600.0,112590.0,0.3871]
[1760143079584,0.02449,112600.0,112590.0,0.34]
[1760143079585,0.17979573,112600.0,112590.0,0.34]
[1760143079818,0.17763709,112590.0,112570.0,0.0471]
[1760143079950,0.18867672,112600.0,112580.0,0.20456]
[1760143080156,0.18867672,112600.0,112590.0,0.0471]
[1760143080357,0.68409037,112620.0,112590.0,0.20556]
[1760143080558,0.23439037,112620.0,112600.0,0.0471]
[1760143080766,0.00057612,112610.0,112600.0,0.0471]
[1760143081014,0.17818024,112610.0,112590.0,0.04805016]
[1760143081193,0.17818024,112610.0,112590.0,0.14228016]
[1760143081595,0.17761989,112600.0,112590.0,0.04805016]
[1760143081940,0.17818024,112610.0,112590.0,0.11128016]
[1760143082146,0.17818024,112610.0,112590.0,0.20551016]
[1760143082352,0.00057612,112610.0,112600.0,0.0471]
[1760143082560,0.00057612,112610.0,112600.0,0.54456]
[1760143083291,0.01057612,112610.0,112600.0,0.54456]
[1760143084077,0.01057612,112610.0,112600.0,0.65706054]
[1760143084200,0.00968745,112610.0,112600.0,0.83468043]
[1760143084409,0.00968745,112610.0,112600.0,0.63206055]
[1760143085044,0.00968745,112610.0,112600.0,0.54456]
[1760143085967,0.05918745,112610.0,112600.0,0.45033]
[1760143086391,0.23679157,112610.0,112600.0,0.45033]
[1760143086626,0.17761989,112600.0,112590.0,0.04805016]
[1760143087059,0.22731989,112600.0,112590.0,0.00095016]
[1760143087480,0.17761989,112600.0,112590.0,0.04805016]
[1760143087615,0.00968745,112610.0,112590.0,0.20551016]
[1760143087969,0.00968745,112610.0,112600.0,0.48133]
[1760143088415,0.00968745,112610.0,112600.0,0.54289]
[1760143090243,0.00968745,112610.0,112600.0,0.20272]
[1760143091255,0.00968745,112610.0,112600.0,0.10866]
[1760143091473,0.03463745,112610.0,112600.0,0.0471]
[1760143091710,0.00968745,112610.0,112600.0,0.20272]
[1760143095096,0.4,112650.0,112600.0,0.29022055]
[1760143095290,0.0002,112730.0,112710.0,0.02499999]
[1760143095445,0.04674,112730.0,112720.0,0.09999999]
[1760143095640,0.1085,112730.0,112700.0,0.43999999]
[1760143095896,0.11540582,112730.0,112720.0,0.09999999]
[1760143096095,0.20994582,112730.0,112720.0,0.09999999]
[1760143096321,0.20994582,112730.0,112700.0,0.43999999]
[1760143096524,0.20354464,112730.0,112720.0,0.09999999]
[1760143096725,0.10900464,112730.0,112720.0,0.09999999]
[1760143098408,0.20354464,112730.0,112720.0,0.09999999]
[1760143099773,0.00070464,112730.0,112720.0,0.50155999]
[1760143100021,0.00070464,112730.0,112720.0,0.67899079]
[1760143101758,0.00070464,112730.0,112720.0,0.81967134]
[1760143102097,0.00761046,112730.0,112720.0,0.81967134]
[1760143102827,0.00761046,112730.0,112720.0,0.86253393]
[1760143103267,0.00761046,112730.0,112720.0,0.87049683]
[1760143103476,0.00761046,112730.0,112720.0,0.8623261]
[1760143103850,0.00761046,112730.0,112720.0,0.8633261]
[1760143104472,0.00761046,112730.0,112720.0,0.88732609]
[1760143104646,0.00761046,112730.0,112720.0,0.88832609]
[1760143105071,0.00761046,112730.0,112720.0,0.91847799]
[1760143105274,0.00761046,112730.0,112720.0,0.97442614]
[1760143105480,0.00761046,112730.0,112720.0,0.92664872]
[1760143106457,0.00528,112740.0,112730.0,0.67256694]
[1760143106653,0.00543127,112740.0,112730.0,1.50790758]
[1760143106877,0.00543127,112740.0,112730.0,1.56946758]
[1760143107291,0.00543127,112740.0,112730.0,0.70535949]
[1760143107515,0.00543127,112740.0,112730.0,0.80535948]
[1760143107760,0.00543127,112740.0,112730.0,0.80624661]
[1760143107965,0.00543127,112740.0,112730.0,1.51660838]
[1760143108479,0.00543127,112740.0,112730.0,1.49160839]
[1760143109422,0.00543127,112740.0,112730.0,1.51660838]
[1760143110508,0.00078967,112740.0,112730.0,1.51660838]
[1760143111341,0.02542412,112770.0,112750.0,0.17737632]
[1760143111570,0.1083,112760.0,112750.0,0.43999999]
[1760143112194,0.20284,112760.0,112750.0,0.43999999]
[1760143112390,0.20456508,112760.0,112750.0,0.09999999]
[1760143113427,0.04826508,112760.0,112750.0,0.13325999]
[1760143113650,0.00172508,112760.0,112750.0,0.37220358]
[1760143114210,0.00172508,112760.0,112750.0,0.78674358]
[1760143114644,0.00172508,112760.0,112750.0,0.71220358]
[1760143114846,0.00484144,112770.0,112760.0,0.43999999]
[1760143115048,0.06660144,112770.0,112760.0,0.43999999]
[1760143115592,0.16114144,112770.0,112760.0,0.43999999]
[1760143116227,0.16114144,112770.0,112760.0,0.09999999]
[1760143116434,0.13883384,112770.0,112760.0,0.09999999]
[1760143116628,0.15113384,112770.0,112760.0,0.09999999]
[1760143117442,0.0523748,112780.0,112770.0,0.09999999]
[1760143117773,0.02237389,112780.0,112770.0,0.09999999]
[1760143118436,6.767e-05,112780.0,112770.0,0.09999999]
[1760143119508,0.20755597,112780.0,112760.0,0.09999999]
[1760143119660,0.1773364,112780.0,112760.0,0.09999999]
[1760143120263,0.17735213,112770.0,112760.0,0.09999999]
[1760143120462,0.16389701,112780.0,112750.0,0.09999999]
[1760143120663,0.20629786,112760.0,112750.0,0.0009484]
[1760143121120,0.20658786,112760.0,112750.0,0.0009484]
[1760143121327,0.20658786,112760.0,112750.0,0.44094839]
[1760143121525,0.20658786,112760.0,112750.0,0.3409484]
[1760143121744,0.20658786,112760.0,112750.0,0.0009484]
[1760143122129,0.18427768,112760.0,112750.0,0.0009484]
[1760143122332,0.21442958,112760.0,112750.0,0.0009484]
[1760143124355,0.19211941,112760.0,112750.0,0.0009484]
[1760143126266,0.16196751,112760.0,112750.0,0.0009484]
[1760143127694,0.13965734,112760.0,112750.0,0.0009484]
[1760143129425,0.14749907,112760.0,112750.0,0.0009484]
[1760143129994,0.48749907,112760.0,112720.0,0.09999999]
[1760143130200,0.1774308,112720.0,112710.0,0.09999999]
[1760143130500,0.1774308,112720.0,112710.0,0.01907948]
[1760143130890,0.1774308,112720.0,112710.0,0.11907947]
[1760143131129,0.15511271,112720.0,112710.0,0.01907948]
[1760143131357,0.15511271,112720.0,112710.0,0.01958412]
[1760143131489,0.15511271,112720.0,112710.0,0.00050464]
[1760143131842,0.15511271,112720.0,112710.0,0.01959173]
[1760143132395,0.15511271,112720.0,112710.0,0.01959436]
[1760143132590,0.15511271,112720.0,112710.0,0.02059436]
[1760143132794,0.13279462,112720.0,112710.0,0.00150464]
[1760143133184,0.13279462,112720.0,112710.0,0.10050463]
[1760143135023,0.17741506,112730.0,112720.0,0.09999999]
[1760143135230,0.17741506,112730.0,112720.0,0.14899999]
[1760143135430,0.17741506,112730.0,112720.0,0.09999999]
[1760143135642,0.1774308,112720.0,112710.0,0.10050463]
[1760143135843,0.1774308,112720.0,112710.0,0.10280562]
[1760143136914,0.15511271,112720.0,112710.0,0.10280562]
[1760143138540,0.13279462,112720.0,112710.0,0.10280562]
[1760143138744,0.13279462,112720.0,112710.0,0.00280563]
[1760143139388,0.13279462,112720.0,112710.0,0.10280562]
[1760143139941,0.13279462,112720.0,112710.0,0.00280563]
[1760143140146,0.13279462,112720.0,112710.0,0.10280562]
[1760143140878,0.11047653,112720.0,112710.0,0.10280562]
[1760143141076,0.51047653,112720.0,112710.0,0.00280563]
[1760143141451,0.11047653,112720.0,112710.0,0.00280563]
[1760143142063,0.21601653,112720.0,112710.0,0.00280563]
[1760143142467,0.19369844,112720.0,112710.0,0.00280563]
[1760143142668,0.59369844,112720.0,112710.0,0.00280563]
[1760143143171,0.19369844,112720.0,112710.0,0.10280562]
[1760143143394,0.19369844,112720.0,112710.0,0.00280563]
[1760143143395,0.19412844,112720.0,112710.0,0.00280563]
[1760143144727,0.17181035,112720.0,112710.0,0.00280563]
[1760143152901,0.14949227,112720.0,112710.0,0.00280563]
[1760143153961,0.48949227,112720.0,112710.0,0.00280563]
[1760143154163,0.48949227,112720.0,112710.0,1e-08]
[1760143154724,0.14906227,112720.0,112710.0,0.1]
[1760143154901,0.14949227,112720.0,112710.0,0.1]
[1760143155108,0.14906227,112720.0,112710.0,0.1]
[1760143155504,0.2834008,112720.0,112710.0,0.1]
[1760143156096,0.1774308,112720.0,112710.0,0.1]
[1760143156299,0.1774308,112720.0,112710.0,1e-08]
[1760143156962,0.1774308,112720.0,112710.0,0.1]
[1760143157163,0.1774308,112720.0,112710.0,1e-08]
[1760143157365,0.1774308,112720.0,112710.0,0.1]
[1760143158054,0.15511271,112720.0,112710.0,0.1]
[1760143158939,0.15511271,112720.0,112710.0,1e-08]
[1760143159353,0.15511271,112720.0,112710.0,0.1]
[1760143159571,0.15514023,112700.0,112690.0,0.14756]
[1760143159796,0.17747803,112690.0,112680.0,0.58249]
[1760143160031,0.61867803,112690.0,112680.0,0.54803]
[1760143160270,0.61867803,112690.0,112680.0,0.64703]
[1760143160757,0.61867803,112690.0,112680.0,0.54803]
[1760143161199,0.61867803,112690.0,112680.0,0.20803]
[1760143161404,0.17747803,112690.0,112680.0,0.21254]
[1760143161738,0.17747803,112690.0,112680.0,0.30703]
[1760143162204,0.17747803,112690.0,112680.0,0.306787]
[1760143162405,0.17747803,112690.0,112680.0,0.2868301]
[1760143162557,0.15564313,112700.0,112690.0,0.099]
[1760143162761,0.15564313,112700.0,112690.0,0.24205]
[1760143162974,0.15564313,112700.0,112690.0,0.30659]
[1760143164112,0.13332108,112700.0,112690.0,0.2121]
[1760143165103,0.13332108,112700.0,112690.0,0.21325088]
[1760143166098,0.11099903,112700.0,112690.0,0.21325088]
[1760143167046,0.11099903,112700.0,112690.0,0.10015088]
[1760143167270,0.11099903,112700.0,112690.0,0.16469088]
[1760143167473,0.11099903,112700.0,112690.0,0.21325088]
[1760143168130,0.08867698,112700.0,112690.0,0.00115088]
[1760143168326,0.08867698,112700.0,112690.0,0.10015088]
[1760143169597,0.08867698,112700.0,112690.0,0.16469088]
[1760143170228,0.1863316,112710.0,112690.0,0.06569088]
[1760143170378,0.17746228,112700.0,112690.0,0.16369099]
[1760143170589,0.17746228,112700.0,112690.0,0.09915099]
[1760143170802,0.17746228,112700.0,112690.0,0.00015099]
[1760143171002,0.57746228,112700.0,112690.0,0.09915099]
[1760143171943,0.17754105,112650.0,112630.0,0.04817742]
[1760143172131,0.17760412,112610.0,112600.0,0.04856]
[1760143172330,0.17760412,112610.0,112600.0,0.1136029]
[1760143172551,0.17760412,112610.0,112600.0,0.4536029]
[1760143173218,0.17760412,112610.0,112600.0,0.1136029]
[1760143173468,0.17760412,112610.0,112600.0,0.4536029]
[1760143173667,0.17760412,112610.0,112600.0,0.1136029]
[1760143174008,0.21143464,112640.0,112600.0,0.29559345]
[1760143174220,0.17755681,112640.0,112630.0,0.04856]
[1760143174480,0.17755681,112640.0,112630.0,0.1131]
[1760143176754,0.2025568,112640.0,112630.0,0.1131]
[1760143177318,0.2025568,112640.0,112630.0,0.11770604]
[1760143177520,0.2025568,112640.0,112630.0,0.55219604]
[1760143177521,0.17755681,112640.0,112630.0,0.55219604]
[1760143177925,0.15522287,112640.0,112630.0,0.55219604]
[1760143178097,0.15522287,112640.0,112630.0,0.45770604]
[1760143178456,0.18022286,112640.0,112630.0,0.45770604]
[1760143178661,0.18022286,112640.0,112630.0,0.45870604]
[1760143178861,0.18022286,112640.0,112630.0,0.11870604]
[1760143179269,0.18022286,112640.0,112630.0,0.05316604]
[1760143179625,0.18022286,112640.0,112630.0,0.05416604]
[1760143181081,0.18022286,112640.0,112630.0,0.12019604]
[1760143181878,0.16324696,112640.0,112630.0,0.12019604]
[1760143183586,0.13824697,112640.0,112630.0,0.21777604]
[1760143183789,0.1864181,112650.0,112630.0,0.30527659]
[1760143183790,0.17754162,112650.0,112630.0,0.30527659]
[1760143184106,0.03387625,112660.0,112640.0,0.15074992]
[1760143184286,0.21142916,112670.0,112650.0,0.21275]
[1760143184488,0.18644858,112680.0,112660.0,0.14672]
[1760143184834,0.17750954,112670.0,112660.0,0.04914]
[1760143185124,0.17750954,112670.0,112660.0,0.11517]
[1760143185341,0.17752529,112660.0,112650.0,0.04914]
[1760143185523,0.17752529,112660.0,112650.0,0.1156729]
[1760143186263,0.17752529,112660.0,112650.0,0.2132529]
[1760143186547,0.13558388,112660.0,112650.0,0.2142529]
[1760143188595,0.13558388,112660.0,112650.0,0.1166729]
[1760143188944,0.13558388,112660.0,112650.0,0.2142529]
[1760143189098,0.13825403,112660.0,112650.0,0.0015029]
[1760143189496,0.16655423,112660.0,112650.0,0.00495681]
[1760143189733,0.16655423,112660.0,112650.0,0.00395681]
[1760143190599,0.13825403,112660.0,112650.0,0.00395681]
[1760143190951,0.13825403,112660.0,112650.0,0.11514681]
[1760143191157,0.13825403,112660.0,112650.0,0.05119681]
[1760143191748,0.13825403,112660.0,112650.0,0.00395681]
[1760143192576,0.16586248,112660.0,112650.0,0.00395681]
[1760143199070,0.1435325,112660.0,112650.0,0.00395681]
[1760143199490,0.20257257,112630.0,112620.0,0.04914]
[1760143199703,0.20257257,112630.0,112620.0,0.11324127]
[1760143201142,0.20257257,112630.0,112620.0,0.00115127]
[1760143201622,0.18023665,112630.0,112620.0,0.00115127]
[1760143202257,0.18023665,112630.0,112620.0,0.00015127]
[1760143202655,0.17757004,112640.0,112620.0,0.20391127]
[1760143202862,0.17757258,112630.0,112620.0,0.11134127]
[1760143203551,0.20257003,112640.0,112620.0,0.20391127]
[1760143203744,0.17757258,112630.0,112620.0,0.11134127]
[1760143204404,0.17757258,112630.0,112620.0,0.20391127]
[1760143205167,0.17757258,112630.0,112620.0,0.20563914]
[1760143206357,0.20142186,112630.0,112620.0,0.04911914]
[1760143206560,0.20142186,112630.0,112620.0,0.00187914]
[1760143211368,0.20142186,112630.0,112620.0,0.11734914]
[1760143216812,0.20142186,112630.0,112620.0,0.20786914]
[1760143217221,0.17757258,112630.0,112620.0,0.20786914]
[1760143217426,0.20257257,112630.0,112620.0,0.20786914]
[1760143219167,0.20257257,112630.0,112620.0,0.11734914]
[1760143219938,0.20257257,112630.0,112620.0,0.00187914]
[1760143220341,0.20257257,112630.0,112620.0,0.06769914]
[1760143220583,0.20257257,112630.0,112620.0,0.11734914]
[1760143220779,0.17757258,112630.0,112620.0,0.20786914]
[1760143223011,0.17757258,112630.0,112620.0,0.11734914]
[1760143224005,0.17757258,112630.0,112620.0,0.20786914]
[1760143224739,0.17755696,112640.0,112620.0,0.29536969]
[1760143224983,0.17755756,112640.0,112630.0,0.04965]
[1760143225244,0.17755756,112640.0,112630.0,0.14017]